bitfinex/quotes_BTCUSD_20241014
["timestamp","ask_amount","ask_price","bid_price","bid_amount"]
[1728938407465,1.60189444,66049.0,66048.0,0.4687086]
[1728938407930,1.62410569,66049.0,66048.0,0.4687086]
[1728938408377,1.63168845,66049.0,66048.0,0.5028246]
[1728938408626,1.63168845,66049.0,66048.0,0.5018246]
[1728938408847,1.63268845,66049.0,66048.0,0.5018246]
[1728938409043,1.66134335,66049.0,66048.0,0.5018246]
[1728938409483,1.66234335,66049.0,66048.0,0.5028246]
[1728938409696,1.65534335,66049.0,66048.0,0.5018246]
[1728938409922,1.66234335,66049.0,66048.0,0.5028246]
[1728938411729,1.53334435,66049.0,66048.0,0.5028246]
[1728938411950,1.20642035,66049.0,66048.0,0.002825]
[1728938412170,1.1216848,66049.0,66048.0,0.002825]
[1728938412383,0.96886784,66049.0,66048.0,0.002825]
[1728938412616,0.9217265,66049.0,66048.0,0.002825]
[1728938413301,0.94487088,66049.0,66048.0,0.002825]
[1728938414235,0.94486652,66049.0,66048.0,0.002825]
[1728938414454,0.96842253,66049.0,66048.0,0.002825]
[1728938414889,1.13011253,66049.0,66048.0,0.002825]
[1728938415770,1.08299721,66049.0,66048.0,0.002825]
[1728938416899,1.13009048,66049.0,66048.0,0.002825]
[1728938417775,1.145906,66049.0,66048.0,0.002825]
[1728938418662,1.03513001,66049.0,66048.0,0.002825]
[1728938418902,1.14555289,66049.0,66048.0,0.002825]
[1728938420897,1.06145289,66049.0,66048.0,0.002825]
[1728938421108,1.05106289,66049.0,66048.0,0.002825]
[1728938421811,0.017,66046.0,66045.0,0.47035238]
[1728938422047,0.72245234,66046.0,66045.0,0.47035238]
[1728938422264,0.7333252,66046.0,66045.0,0.47035238]
[1728938422478,0.65986744,66046.0,66045.0,0.47035238]
[1728938422693,0.7333239,66046.0,66045.0,0.47035238]
[1728938422890,0.73309885,66046.0,66045.0,0.47135238]
[1728938423111,0.73409885,66046.0,66045.0,0.47135238]
[1728938423974,0.74209885,66046.0,66045.0,0.47235238]
[1728938426558,0.74210301,66046.0,66045.0,0.47235238]
[1728938426764,0.66864677,66046.0,66045.0,0.47235238]
[1728938426991,0.65428237,66046.0,66045.0,0.47235238]
[1728938427217,0.72798516,66046.0,66045.0,0.47235238]
[1728938427594,0.74211335,66046.0,66045.0,0.47235238]
[1728938429717,0.87767268,66046.0,66045.0,0.47235238]
[1728938429943,0.74211335,66046.0,66045.0,0.47235238]
[1728938430569,0.87772567,66046.0,66045.0,0.47235238]
[1728938430792,0.74213995,66046.0,66045.0,0.47235238]
[1728938431221,0.87774463,66046.0,66045.0,0.47235238]
[1728938431429,0.87467299,66046.0,66045.0,0.47235238]
[1728938431649,0.73906831,66046.0,66045.0,0.47235238]
[1728938431866,0.78618321,66046.0,66045.0,0.47235238]
[1728938432747,0.78619117,66046.0,66045.0,0.47235238]
[1728938434280,0.73907627,66046.0,66045.0,0.43823057]
[1728938434486,0.74924739,66046.0,66045.0,0.43823057]
[1728938434736,0.7391361,66046.0,66045.0,0.43823057]
[1728938435164,0.7091361,66046.0,66045.0,0.51993057]
[1728938435390,0.6991361,66046.0,66045.0,0.61793057]
[1728938435600,0.7041361,66046.0,66045.0,0.61793057]
[1728938435821,0.71924566,66046.0,66045.0,0.61793057]
[1728938436174,0.71924566,66046.0,66045.0,0.61875557]
[1728938436395,0.6967861,66046.0,66045.0,0.61675557]
[1728938436594,0.7057861,66046.0,66045.0,0.61875557]
[1728938436795,0.7287861,66046.0,66045.0,0.61875557]
[1728938437187,0.7217861,66046.0,66045.0,0.61775557]
[1728938437394,0.7287861,66046.0,66045.0,0.61875557]
[1728938438706,0.69202621,66046.0,66045.0,0.61875557]
[1728938439035,0.72886394,66046.0,66045.0,0.61875557]
[1728938439237,0.56198904,66046.0,66045.0,0.61875557]
[1728938439673,0.72901494,66046.0,66045.0,0.61875557]
[1728938441769,0.77625202,66046.0,66045.0,0.61875557]
[1728938442409,0.77636078,66046.0,66045.0,0.61875557]
[1728938442616,0.77638726,66046.0,66045.0,0.61875557]
[1728938443209,0.77638726,66046.0,66045.0,0.58463536]
[1728938443704,0.72915476,66046.0,66045.0,0.58463536]
[1728938444390,0.77638968,66046.0,66045.0,0.58463536]
[1728938446529,0.77639811,66046.0,66045.0,0.58463536]
[1728938449948,0.79938752,66046.0,66045.0,0.58463536]
[1728938450160,0.76254521,66046.0,66045.0,0.58463536]
[1728938450373,0.79940445,66046.0,66045.0,0.58463536]
[1728938450612,0.79942252,66046.0,66045.0,0.58463536]
[1728938452552,0.63239662,66046.0,66045.0,0.58463536]
[1728938452746,0.64239662,66046.0,66045.0,0.58463536]
[1728938454050,0.56847226,66046.0,66045.0,0.58463536]
[1728938454250,0.64241025,66046.0,66045.0,0.58463536]
[1728938454720,1.04435181,66046.0,66045.0,0.58463536]
[1728938457138,1.04435181,66046.0,66045.0,0.58431942]
[1728938457349,1.04635181,66046.0,66045.0,0.58431942]
[1728938457766,0.96498196,66046.0,66045.0,0.34319979]
[1728938457987,0.87311007,66046.0,66045.0,0.34319979]
[1728938458233,0.81189416,66046.0,66045.0,0.30907783]
[1728938459057,0.64441851,66046.0,66045.0,0.30907783]
[1728938459300,0.81183497,66046.0,66045.0,0.30907783]
[1728938460567,0.96490145,66046.0,66045.0,0.30907783]
[1728938460774,1.47441597,66046.0,66045.0,0.30907783]
[1728938461222,1.52512401,66046.0,66045.0,0.30907783]
[1728938461440,1.45116442,66046.0,66045.0,0.30907783]
[1728938461676,1.29068654,66046.0,66045.0,0.30907783]
[1728938461904,1.52506958,66046.0,66045.0,0.30907783]
[1728938464551,1.46533572,66046.0,66045.0,0.30907783]
[1728938464770,1.29065815,66046.0,66045.0,0.30907783]
[1728938464991,1.52504119,66046.0,66045.0,0.30907783]
[1728938468338,1.52504119,66046.0,66045.0,0.26168292]
[1728938468591,1.52500764,66046.0,66045.0,0.26168292]
[1728938469041,1.50234701,66046.0,66045.0,0.26168292]
[1728938469272,1.26796397,66046.0,66045.0,0.26168292]
[1728938469900,1.73049397,66046.0,66045.0,0.26168292]
[1728938470132,1.96487701,66046.0,66045.0,0.26168292]
[1728938471757,0.9604516,66046.0,66045.0,0.42978292]
[1728938471994,0.81480472,66046.0,66045.0,0.42978292]
[1728938472243,0.67883364,66046.0,66045.0,0.42978292]
[1728938472491,0.67873536,66046.0,66045.0,0.42978292]
[1728938472722,0.67872327,66046.0,66045.0,0.42978292]
[1728938473411,0.70172327,66046.0,66045.0,0.42978292]
[1728938473880,0.83769765,66046.0,66045.0,0.42978292]
[1728938474114,0.70172327,66046.0,66045.0,0.42978292]
[1728938476175,0.62786906,66046.0,66045.0,0.42978292]
[1728938476376,0.70175774,66046.0,66045.0,0.42978292]
[1728938477081,0.7018278,66046.0,66045.0,0.42978292]
[1728938477317,0.7068278,66046.0,66045.0,0.42978292]
[1728938477544,0.72194049,66046.0,66045.0,0.42978292]
[1728938477758,0.7068278,66046.0,66045.0,0.42978292]
[1728938477989,0.7068278,66046.0,66045.0,0.26168292]
[1728938477990,0.76604962,66046.0,66045.0,0.26168292]
[1728938478205,0.91908486,66046.0,66045.0,0.26168292]
[1728938478381,1.00038483,66046.0,66045.0,0.26168292]
[1728938478949,0.76604962,66046.0,66045.0,0.22755906]
[1728938479157,0.005,66040.0,66039.0,0.09435]
[1728938479377,0.68080881,66040.0,66039.0,0.09435]
[1728938479627,0.68080881,66040.0,66039.0,0.31971528]
[1728938479628,0.36323879,66040.0,66039.0,0.31971528]
[1728938479895,0.11335068,66050.0,66048.0,0.151405]
[1728938480126,0.0151078,66066.0,66048.0,0.151405]
[1728938480127,0.00165,66049.0,66048.0,0.38169028]
[1728938480596,0.00165,66049.0,66048.0,0.26900764]
[1728938480832,0.00165,66049.0,66048.0,0.26408764]
[1728938481759,0.00265,66049.0,66048.0,0.27108764]
[1728938481992,0.00265,66049.0,66048.0,0.3426682]
[1728938482253,0.00165,66049.0,66048.0,0.0889]
[1728938482512,0.00165,66049.0,66048.0,0.4135682]
[1728938482735,0.00165,66049.0,66048.0,0.4195682]
[1728938482956,0.00165,66049.0,66048.0,0.2621632]
[1728938483410,0.00165,66049.0,66048.0,0.2671632]
[1728938483639,0.00165,66049.0,66048.0,0.2571632]
[1728938484122,0.00165,66049.0,66048.0,0.2611632]
[1728938484573,0.00165,66049.0,66048.0,0.2571632]
[1728938485055,0.00165,66049.0,66048.0,0.2581632]
[1728938485276,0.00165,66049.0,66048.0,0.0819]
[1728938487364,0.02188418,66049.0,66048.0,0.0819]
[1728938487596,0.02188418,66049.0,66048.0,0.5819]
[1728938489005,0.17328618,66049.0,66048.0,0.5819]
[1728938489250,0.02188418,66049.0,66048.0,0.5819]
[1728938491595,0.17328618,66049.0,66048.0,0.501]
[1728938493664,0.02188418,66049.0,66048.0,0.501]
[1728938494712,0.17328618,66049.0,66048.0,0.501]
[1728938495145,0.02188418,66049.0,66048.0,0.501]
[1728938495360,0.17328618,66049.0,66048.0,0.501]
[1728938495823,0.17328618,66049.0,66048.0,0.5]
[1728938496158,0.35081465,66049.0,66048.0,0.5]
[1728938496609,0.35181465,66049.0,66048.0,0.5]
[1728938497019,0.35081465,66049.0,66048.0,0.5]
[1728938497261,0.34981465,66049.0,66048.0,0.5]
[1728938497489,0.35081465,66049.0,66048.0,0.5]
[1728938497709,0.35181465,66049.0,66048.0,0.5]
[1728938497974,0.35081465,66049.0,66048.0,0.5]
[1728938498396,0.36311651,66049.0,66048.0,0.5]
[1728938499261,0.37724885,66049.0,66048.0,0.5]
[1728938502122,0.40950038,66049.0,66048.0,0.5]
[1728938504073,0.39536804,66049.0,66048.0,0.5]
[1728938504342,0.40952624,66049.0,66048.0,0.5]
[1728938507583,0.55471242,66049.0,66048.0,0.5]
[1728938507825,0.72481242,66049.0,66048.0,0.5]
[1728938508033,0.62191465,66049.0,66048.0,0.5]
[1728938508267,0.66549563,66049.0,66048.0,0.5]
[1728938508689,0.67965167,66049.0,66048.0,0.5]
[1728938509144,0.66550227,66049.0,66048.0,0.5]
[1728938509603,0.73328155,66049.0,66048.0,0.5]
[1728938509808,0.73329685,66049.0,66048.0,0.5]
[1728938511058,0.66550227,66049.0,66048.0,0.5]
[1728938511698,0.83227071,66049.0,66048.0,0.5]
[1728938512681,0.92866249,66049.0,66048.0,0.5]
[1728938512927,0.92766249,66049.0,66048.0,0.5]
[1728938513147,0.86438509,66049.0,66048.0,0.5]
[1728938513349,1.28894559,66049.0,66048.0,0.5]
[1728938513554,1.42449744,66049.0,66048.0,0.5]
[1728938513808,1.29385144,66049.0,66048.0,0.5]
[1728938514016,1.29285144,66049.0,66048.0,0.5]
[1728938514188,1.11018459,66049.0,66048.0,0.32887776]
[1728938514415,1.15829858,66049.0,66048.0,0.32987776]
[1728938514644,1.15827924,66049.0,66048.0,0.26931576]
[1728938514846,1.15827924,66049.0,66048.0,0.26831576]
[1728938514847,1.15727924,66049.0,66048.0,0.26831576]
[1728938515251,1.15827924,66049.0,66048.0,0.002]
[1728938515438,0.366123,66040.0,66039.0,0.22905538]
[1728938515678,1.40416907,66040.0,66039.0,0.22905538]
[1728938515933,1.39168651,66040.0,66039.0,0.22905538]
[1728938516138,1.39168651,66040.0,66039.0,0.00165]
[1728938516354,1.15779151,66040.0,66039.0,0.00165]
[1728938516570,1.19388942,66040.0,66039.0,0.00165]
[1728938516794,1.17286505,66040.0,66039.0,0.00165]
[1728938517226,1.18484953,66040.0,66039.0,0.00265]
[1728938517641,1.19584953,66040.0,66039.0,0.00365]
[1728938518254,1.18079151,66040.0,66039.0,0.00365]
[1728938518879,1.18861707,66040.0,66039.0,0.00365]
[1728938519295,1.18848243,66040.0,66039.0,0.00365]
[1728938519739,1.18833718,66040.0,66039.0,0.00365]
[1728938520154,1.18833711,66040.0,66039.0,0.00365]
[1728938521037,1.21059051,66040.0,66039.0,0.00365]
[1728938522442,1.16714821,66040.0,66039.0,0.00365]
[1728938522675,1.21056941,66040.0,66039.0,0.00365]
[1728938522901,1.19647162,66040.0,66039.0,0.00365]
[1728938523134,1.21056962,66040.0,66039.0,0.00365]
[1728938523422,2.21438862,66040.0,66039.0,0.00365]
[1728938523656,2.32712428,66040.0,66039.0,0.00365]
[1728938524128,2.21438862,66040.0,66039.0,0.00365]
[1728938524563,0.017,66035.0,66034.0,0.00165]
[1728938524805,1.39792062,66035.0,66034.0,0.00165]
[1728938525037,1.58478455,66035.0,66034.0,0.00165]
[1728938525944,1.59178455,66035.0,66034.0,0.00265]
[1728938526641,1.48607443,66035.0,66034.0,0.00365]
[1728938527120,1.47503343,66035.0,66034.0,0.00365]
[1728938528531,1.45999981,66035.0,66034.0,0.00365]
[1728938529439,1.47581533,66035.0,66034.0,0.00365]
[1728938530186,1.46171733,66035.0,66034.0,0.00365]
[1728938530423,1.45983785,66035.0,66034.0,0.00365]
[1728938530643,0.274457,66025.0,66014.0,0.00165]
[1728938530884,0.274457,66025.0,66015.0,0.0967]
[1728938530885,0.45731111,66025.0,66015.0,0.0967]
[1728938531128,0.49159088,66025.0,66015.0,0.0967]
[1728938531350,0.151469,66020.0,66015.0,0.0967]
[1728938531576,0.35337542,66020.0,66015.0,0.0967]
[1728938531803,0.37350024,66020.0,66015.0,0.0967]
[1728938532462,0.3915547,66020.0,66015.0,0.0967]
[1728938532684,0.3935547,66020.0,66015.0,0.0967]
[1728938532891,0.39356077,66020.0,66015.0,0.0967]
[1728938533544,0.39556077,66020.0,66015.0,0.0967]
[1728938534011,0.35212229,66020.0,66015.0,0.0967]
[1728938534222,0.39557228,66020.0,66015.0,0.0967]
[1728938537910,0.40314177,66020.0,66015.0,0.0967]
[1728938538971,0.40318446,66020.0,66015.0,0.0967]
[1728938541754,0.40318446,66020.0,66019.0,0.00184234]
[1728938543177,0.41825397,66020.0,66019.0,0.00184234]
[1728938544254,0.40318446,66020.0,66019.0,0.00184234]
[1728938544969,0.4032778,66020.0,66019.0,0.00184234]
[1728938545419,0.39570831,66020.0,66019.0,0.00184234]
[1728938545657,0.36629734,66020.0,66019.0,0.00184234]
[1728938545845,0.39578144,66020.0,66019.0,0.00184234]
[1728938549567,0.36630504,66020.0,66019.0,0.00184234]
[1728938549776,0.39580511,66020.0,66019.0,0.00184234]
[1728938551746,0.48829512,66020.0,66019.0,0.00184234]
[1728938552634,0.44308399,66020.0,66019.0,0.00184234]
[1728938553313,0.39940117,66020.0,66019.0,0.00184234]
[1728938553535,0.44309493,66020.0,66019.0,0.00184234]
[1728938553750,0.51091158,66020.0,66019.0,0.00184234]
[1728938554619,0.395816,66020.0,66019.0,0.00184234]
[1728938555313,0.41000219,66020.0,66019.0,0.00184234]
[1728938555526,0.39581596,66020.0,66019.0,0.00184234]
[1728938555756,0.66753474,66020.0,66019.0,0.00184234]
[1728938556443,0.42513423,66020.0,66019.0,0.00184234]
[1728938556666,0.5771868,66020.0,66019.0,0.00184234]
[1728938556895,0.66772863,66020.0,66019.0,0.00184234]
[1728938557108,0.68284257,66020.0,66019.0,0.00184234]
[1728938557762,0.59230074,66020.0,66019.0,0.00184234]
[1728938558394,0.57716868,66020.0,66019.0,0.00184234]
[1728938558624,0.59229839,66020.0,66019.0,0.00184234]
[1728938559337,0.59229839,66020.0,66019.0,0.50184234]
[1728938561347,0.59228693,66020.0,66019.0,0.50184234]
[1728938561810,0.72809967,66020.0,66019.0,0.50184234]
[1728938562654,0.71297052,66020.0,66019.0,0.50184234]
[1728938562857,0.57715778,66020.0,66019.0,0.50184234]
[1728938565547,0.57715561,66020.0,66019.0,0.50184234]
[1728938565940,0.72843463,66020.0,66019.0,0.50184234]
[1728938566140,0.57715561,66020.0,66019.0,0.50184234]
[1728938566338,0.59228492,66020.0,66019.0,0.50184234]
[1728938566693,0.72843602,66020.0,66019.0,0.50184234]
[1728938567169,0.57715561,66020.0,66019.0,0.50184234]
[1728938567594,0.57715677,66020.0,66019.0,0.50184234]
[1728938568530,0.72844035,66020.0,66019.0,0.50184234]
[1728938568967,0.72844119,66020.0,66019.0,0.50184234]
[1728938572560,0.57715761,66020.0,66019.0,0.50184234]
[1728938572799,0.26428945,66020.0,66019.0,0.50184234]
[1728938573046,0.26428945,66020.0,66019.0,0.58184234]
[1728938573047,0.40062914,66020.0,66019.0,0.58184234]
[1728938573279,0.24916014,66020.0,66019.0,0.58184234]
[1728938573490,0.36261095,66020.0,66019.0,0.58184234]
[1728938573930,0.51407995,66020.0,66019.0,0.58184234]
[1728938574631,0.24916014,66020.0,66019.0,0.58184234]
[1728938574856,0.24916014,66020.0,66019.0,0.73331334]
[1728938575991,0.24916014,66020.0,66019.0,0.58184234]
[1728938576665,0.33989214,66020.0,66019.0,0.58184234]
[1728938577355,0.24916014,66020.0,66019.0,0.58184234]
[1728938577966,0.24916014,66020.0,66019.0,0.73331334]
[1728938579078,0.24916014,66020.0,66019.0,0.65331334]
[1728938579309,0.24916014,66020.0,66019.0,0.50184234]
[1728938579531,0.33987585,66020.0,66019.0,0.50184234]
[1728938580482,0.33983356,66020.0,66019.0,0.50184234]
[1728938580678,0.49157012,66020.0,66019.0,0.50184234]
[1728938580894,0.34010112,66020.0,66019.0,0.50184234]
[1728938581754,0.49157012,66020.0,66019.0,0.50184234]
[1728938583224,0.49157669,66020.0,66019.0,0.50184234]
[1728938584309,0.49157669,66020.0,66019.0,0.61476946]
[1728938584519,0.5142556,66020.0,66019.0,0.61476946]
[1728938585358,0.5142727,66020.0,66019.0,0.61476946]
[1728938585761,0.40086105,66020.0,66019.0,0.61476946]
[1728938589100,0.40103892,66020.0,66019.0,0.61476946]
[1728938593130,0.40103892,66020.0,66019.0,0.50184234]
[1728938593547,0.42374577,66020.0,66019.0,0.50184234]
[1728938593764,0.25613376,66020.0,66019.0,0.50184234]
[1728938593993,0.42376982,66020.0,66019.0,0.50184234]
[1728938594915,0.38688969,66020.0,66019.0,0.50184234]
[1728938595093,0.42378983,66020.0,66019.0,0.50184234]
[1728938596550,0.40108205,66020.0,66019.0,0.50184234]
[1728938598014,0.51462097,66020.0,66019.0,0.50184234]
[1728938598217,0.53733266,66020.0,66019.0,0.50184234]
[1728938598691,0.04963879,66020.0,66019.0,0.85844046]
[1728938598901,0.02412482,66020.0,66019.0,0.85844046]
[1728938599124,0.004,66020.0,66019.0,0.85844046]
[1728938599544,0.002,66020.0,66019.0,0.85844046]
[1728938599768,0.003,66020.0,66019.0,0.86444046]
[1728938600272,0.001,66020.0,66019.0,0.86444046]
[1728938600486,0.001,66020.0,66019.0,0.75151334]
[1728938600718,0.002,66020.0,66019.0,0.75951334]
[1728938602085,0.002,66020.0,66019.0,0.87736046]
[1728938602523,0.002,66020.0,66019.0,0.88736046]
[1728938604330,0.00165,66030.0,66019.0,0.88736046]
[1728938604331,0.00165,66030.0,66029.0,0.01492]
[1728938604549,0.00165,66030.0,66029.0,0.56692224]
[1728938604767,0.22740538,66042.0,66035.0,0.11292712]
[1728938605013,0.01417911,66041.0,66040.0,0.26434812]
[1728938605256,0.02552239,66041.0,66040.0,0.26434812]
[1728938605716,0.00165,66045.0,66044.0,0.151414]
[1728938605947,0.00165,66045.0,66044.0,0.38218824]
[1728938606947,0.00165,66045.0,66044.0,0.39218824]
[1728938607169,0.00165,66045.0,66044.0,0.27926112]
[1728938607387,0.00165,66045.0,66044.0,0.39918824]
[1728938607850,0.00165,66045.0,66044.0,0.28626112]
[1728938608055,0.00165,66045.0,66044.0,0.28928865]
[1728938608500,0.00165,66045.0,66044.0,0.40221577]
[1728938608724,0.00165,66045.0,66044.0,0.39918824]
[1728938608945,0.00165,66045.0,66044.0,0.29126112]
[1728938609661,0.00165,66045.0,66044.0,0.29428867]
[1728938610820,0.00165,66045.0,66044.0,0.40721579]
[1728938611042,0.00165,66045.0,66044.0,0.40418824]
[1728938611271,0.00165,66045.0,66044.0,1.06352209]
[1728938611505,0.00165,66049.0,66048.0,0.39217924]
[1728938611755,0.00165,66049.0,66048.0,0.39417924]
[1728938611979,0.000826,66056.0,66055.0,0.156388]
[1728938612219,0.000826,66056.0,66055.0,0.26931512]
[1728938612447,0.000826,66056.0,66055.0,0.27234232]
[1728938613101,0.000826,66056.0,66055.0,0.5046677]
[1728938613356,0.000826,66056.0,66055.0,0.27923512]
[1728938613800,0.000826,66056.0,66055.0,0.78423512]
[1728938614030,0.000826,66056.0,66055.0,0.78823512]
[1728938614748,0.000826,66056.0,66055.0,0.78423512]
[1728938615184,0.000826,66056.0,66055.0,0.78923512]
[1728938615828,0.000826,66056.0,66055.0,0.78423512]
[1728938616307,0.000826,66056.0,66055.0,0.79023512]
[1728938616986,0.000826,66056.0,66055.0,0.78523512]
[1728938617673,0.000826,66056.0,66055.0,0.80743202]
[1728938620750,0.000826,66056.0,66055.0,0.6945049]
[1728938620976,0.000826,66056.0,66055.0,0.80743202]
[1728938629900,0.0922,66068.0,66059.0,0.00992]
[1728938630134,0.0922,66068.0,66055.0,0.79965249]
[1728938630135,0.30530538,66080.0,66071.0,0.00492]
[1728938630382,0.30530538,66080.0,66079.0,0.37718824]
[1728938630611,0.0779,66080.0,66079.0,0.22585424]
[1728938630826,0.10331242,66080.0,66079.0,0.22585424]
[1728938631515,0.000825,66081.0,66080.0,0.151331]
[1728938631730,0.000825,66081.0,66080.0,0.15435698]
[1728938632405,0.000825,66081.0,66080.0,0.15927698]
[1728938633072,0.000825,66081.0,66080.0,0.17061532]
[1728938633733,0.000825,66081.0,66080.0,0.17861532]
[1728938633980,0.000825,66081.0,66080.0,0.17061532]
[1728938634205,0.000825,66081.0,66080.0,0.16661532]
[1728938634414,0.000825,66081.0,66080.0,0.17861532]
[1728938634861,0.000825,66081.0,66080.0,0.16861532]
[1728938635541,0.000825,66081.0,66080.0,0.17561532]
[1728938636001,0.000825,66081.0,66080.0,0.16861532]
[1728938636187,0.000825,66081.0,66080.0,0.16661532]
[1728938636647,0.000825,66081.0,66080.0,0.17761532]
[1728938640653,0.000825,66081.0,66080.0,0.17458934]
[1728938645471,0.000825,66081.0,66080.0,0.17541434]
[1728938653705,0.000825,66081.0,66080.0,0.16549434]
[1728938653925,0.000825,66081.0,66080.0,0.27608312]
[1728938658357,0.01499263,66081.0,66080.0,0.27608312]
[1728938658879,0.02632751,66081.0,66080.0,0.27608312]
[1728938659020,0.000825,66081.0,66080.0,0.26608312]
[1728938659427,0.01500666,66081.0,66080.0,0.27408312]
[1728938659633,0.01500666,66081.0,66080.0,0.26308312]
[1728938659867,0.01500666,66081.0,66080.0,0.27208312]
[1728938660298,0.01500666,66081.0,66080.0,0.27700312]
[1728938660849,0.01500666,66081.0,66080.0,0.164076]
[1728938661491,0.02636079,66081.0,66080.0,0.164076]
[1728938661927,0.01500666,66081.0,66080.0,0.164076]
[1728938662358,0.01500666,66081.0,66080.0,0.664076]
[1728938663003,0.000825,66081.0,66080.0,0.664076]
[1728938676339,0.18538045,66081.0,66080.0,0.517825]
[1728938676547,0.3509033,66081.0,66080.0,0.517825]
[1728938676790,0.38393097,66081.0,66080.0,0.517825]
[1728938676973,0.31475092,66081.0,66080.0,0.517825]
[1728938677189,0.31475092,66081.0,66080.0,0.500825]
[1728938677190,0.2695077,66081.0,66080.0,0.500825]
[1728938677407,0.31475092,66081.0,66080.0,0.502825]
[1728938677880,0.31475092,66081.0,66080.0,0.501825]
[1728938678530,0.29674775,66081.0,66080.0,0.501825]
[1728938679279,0.25133873,66081.0,66080.0,0.501825]
[1728938679507,0.29674775,66081.0,66080.0,0.501825]
[1728938680107,0.25133873,66081.0,66080.0,0.501825]
[1728938680560,0.25129382,66081.0,66080.0,0.501825]
[1728938682677,0.1888837,66081.0,66080.0,0.501825]
[1728938682885,0.251286,66081.0,66080.0,0.501825]
[1728938684899,0.25128135,66081.0,66080.0,0.501825]
[1728938685318,0.22859179,66081.0,66080.0,0.501825]
[1728938687518,1.12614624,66081.0,66080.0,0.501825]
[1728938688015,1.12614624,66081.0,66080.0,0.658076]
[1728938688016,0.90473196,66081.0,66080.0,0.658076]
[1728938688278,0.89055099,66081.0,66080.0,0.658076]
[1728938689816,0.89055099,66081.0,66080.0,0.657076]
[1728938690042,0.89055099,66081.0,66080.0,0.658076]
[1728938690527,0.89055099,66081.0,66080.0,0.657076]
[1728938690750,0.89055099,66081.0,66080.0,0.680076]
[1728938699640,0.89001145,66081.0,66080.0,0.680076]
[1728938700016,0.88953674,66081.0,66080.0,0.680076]
[1728938700218,0.88953674,66081.0,66080.0,0.675156]
[1728938700420,0.9863148,66081.0,66080.0,0.523825]
[1728938700649,1.1242996,66081.0,66080.0,0.523825]
[1728938700846,1.36184029,66081.0,66080.0,0.523825]
[1728938701065,1.57474862,66081.0,66080.0,0.523825]
[1728938701276,1.57476529,66081.0,66080.0,0.523825]
[1728938701452,1.46130928,66081.0,66080.0,0.523825]
[1728938701655,1.46128526,66081.0,66080.0,0.523825]
[1728938701904,1.46128529,66081.0,66080.0,0.523825]
[1728938702134,1.46080683,66081.0,66080.0,0.523825]
[1728938702354,1.46245683,66081.0,66080.0,0.500825]
[1728938702578,1.29494939,66081.0,66080.0,0.508825]
[1728938702786,1.29494939,66081.0,66080.0,0.517825]
[1728938702993,1.36300591,66081.0,66080.0,0.508825]
[1728938703414,1.36300591,66081.0,66080.0,0.516825]
[1728938703620,1.36300591,66081.0,66080.0,0.508825]
[1728938703836,1.29494939,66081.0,66080.0,0.508825]
[1728938704042,1.46241394,66081.0,66080.0,0.515825]
[1728938704250,1.29494939,66081.0,66080.0,0.507825]
[1728938704478,1.36299008,66081.0,66080.0,0.507825]
[1728938705356,1.36299008,66081.0,66080.0,0.500825]
[1728938705860,1.36397494,66081.0,66080.0,0.500825]
[1728938706048,1.32711061,66081.0,66080.0,0.500825]
[1728938706275,1.36395646,66081.0,66080.0,0.61375212]
[1728938706492,1.29126872,66081.0,66080.0,0.61375212]
[1728938707350,1.24591221,66081.0,66080.0,0.61375212]
[1728938707521,1.2459123,66081.0,66080.0,0.61375212]
[1728938707720,1.29126777,66081.0,66080.0,0.61375212]
[1728938708763,1.29126777,66081.0,66080.0,0.500825]
[1728938709826,1.2249369,66081.0,66080.0,0.500825]
[1728938710025,1.29124075,66081.0,66080.0,0.500825]
[1728938710636,1.24588554,66081.0,66080.0,0.500825]
[1728938711140,1.29124075,66081.0,66080.0,0.500825]
[1728938711761,1.24588554,66081.0,66080.0,0.500825]
[1728938713731,1.21640417,66081.0,66080.0,0.500825]
[1728938713917,1.24586503,66081.0,66080.0,0.500825]
[1728938714142,1.24852669,66081.0,66080.0,0.500825]
[1728938716299,1.20773472,66081.0,66080.0,0.500825]
[1728938716516,1.29387611,66081.0,66080.0,0.500825]
[1728938716720,1.2485209,66081.0,66080.0,0.500825]
[1728938717354,1.29385878,66081.0,66080.0,0.500825]
[1728938717572,1.16807586,66081.0,66080.0,0.500825]
[1728938717773,1.23038321,66081.0,66080.0,0.500825]
[1728938717996,1.21905462,66081.0,66080.0,0.500825]
[1728938718208,1.24850932,66081.0,66080.0,0.500825]
[1728938718443,1.24850986,66081.0,66080.0,0.500825]
[1728938718883,1.29384774,66081.0,66080.0,0.500825]
[1728938719103,1.24850986,66081.0,66080.0,0.500825]
[1728938721391,1.20489385,66081.0,66080.0,0.500825]
[1728938721562,1.24852371,66081.0,66080.0,0.500825]
[1728938721974,1.29386333,66081.0,66080.0,0.500825]
[1728938722175,1.24852371,66081.0,66080.0,0.500825]
[1728938725266,1.25704237,66081.0,66080.0,0.500825]
[1728938725463,1.231744,66081.0,66080.0,0.500825]
[1728938725709,1.42510828,66081.0,66080.0,0.500825]
[1728938725957,1.72272963,66081.0,66080.0,0.500825]
[1728938726190,1.83607598,66081.0,66080.0,0.500825]
[1728938726417,1.72272963,66081.0,66080.0,0.500825]
[1728938728628,1.85116756,66081.0,66080.0,0.500825]
[1728938729057,1.83605115,66081.0,66080.0,0.500825]
[1728938729265,1.72272963,66081.0,66080.0,0.500825]
[1728938729477,1.66421176,66081.0,66080.0,0.500825]
[1728938729681,1.73044561,66081.0,66080.0,0.500825]
[1728938730099,1.73039524,66081.0,66080.0,0.500825]
[1728938730782,1.82856549,66081.0,66080.0,0.500825]
[1728938731457,1.8285623,66081.0,66080.0,0.500825]
[1728938731889,1.76213553,66081.0,66080.0,0.500825]
[1728938732676,1.72224171,66081.0,66080.0,0.500825]
[1728938732882,1.90548557,66081.0,66080.0,0.4667238]
[1728938733127,1.76950993,66081.0,66080.0,0.4667238]
[1728938733799,1.74680321,66081.0,66080.0,0.4667238]
[1728938734013,1.74680321,66081.0,66080.0,0.4999998]
[1728938734445,1.74480321,66081.0,66080.0,0.4999998]
[1728938734674,1.75434092,66081.0,66080.0,0.5009998]
[1728938735349,1.75334092,66081.0,66080.0,0.5009998]
[1728938735769,1.75334092,66081.0,66080.0,0.5019998]
[1728938735770,1.75734092,66081.0,66080.0,0.5019998]
[1728938736191,1.75334092,66081.0,66080.0,0.5018248]
[1728938736454,1.75834092,66081.0,66080.0,0.5028248]
[1728938736667,1.76034092,66081.0,66080.0,0.5028248]
[1728938737309,1.70924369,66081.0,66080.0,0.5028248]
[1728938737510,1.69879525,66081.0,66080.0,0.5028248]
[1728938737720,1.71097015,66081.0,66080.0,0.5028248]